bitfinex/quotes_ETHUSD_20220218
["timestamp","ask_amount","ask_price","bid_price","bid_amount"]
[1645213732806,0.82103795,2792.2,2791.6,0.00231927]
[1645213733009,0.19416234,2792.6,2791.6,11.43731927]
[1645213733210,1.39906234,2792.6,2791.7,0.1789]
[1645213733405,1.39906234,2792.6,2791.8,0.515]
[1645213733807,0.89578,2792.5,2791.8,0.515]
[1645213734004,0.72550194,2792.3,2791.8,0.515]
[1645213734675,0.72550194,2792.3,2791.6,0.00231927]
[1645213734883,0.72550194,2792.3,2791.5,0.01839514]
[1645213734884,0.81539598,2791.8,2791.5,0.01839514]
[1645213735275,0.81539598,2791.8,2791.6,1.927e-05]
[1645213736074,0.81539598,2791.8,2791.5,0.01839514]
[1645213736277,0.89604,2791.7,2791.5,0.01839514]
[1645213736675,0.81539598,2791.8,2791.5,0.01839514]
[1645213736883,6.3754,2792.2,2791.5,0.01839514]
[1645213737377,0.89594,2792.1,2791.5,0.01839514]
[1645213737997,0.72340866,2792.0,2791.5,0.01839514]
[1645213738598,0.72340866,2792.0,2791.2,0.04102649]
[1645213739408,0.72340866,2792.0,2791.2,0.93693649]
[1645213739701,6.38982921,2792.2,2792.0,1.34600038]
[1645213740003,1.20632921,2792.2,2792.0,1.34600038]
[1645213740598,1.96743585,2792.2,2792.0,1.34600038]
[1645213743652,1.1919,2792.2,2792.0,1.34600038]
[1645213746012,1.08999234,2792.6,2792.1,4.015]
[1645213746013,0.19416234,2792.6,2792.1,4.015]
[1645213746213,0.19416234,2792.6,2792.2,10.242]
[1645213746410,6.234e-05,2792.6,2792.5,17.362]
[1645213746610,0.00261959,2793.4,2792.8,0.8951848]
[1645213746816,1.8312,2793.7,2792.8,0.8951848]
[1645213746817,1.8312,2793.7,2792.9,0.6939]
[1645213747209,1.8312,2793.7,2792.9,0.9939]
[1645213747409,0.0026199,2793.4,2793.0,1.79047]
[1645213747607,0.0026199,2793.4,2793.1,0.515]
[1645213747809,0.0026199,2793.4,2793.1,0.815]
[1645213748008,0.0026199,2793.4,2793.1,0.515]
[1645213748211,0.10005964,2793.6,2793.1,0.515]
[1645213748611,0.76788929,2793.3,2792.4,0.89555]
[1645213748812,0.63948572,2792.8,2792.4,0.89555]
[1645213749354,0.1789,2793.5,2792.4,0.89555]
[1645213749556,0.09974043,2793.4,2792.4,0.89555]
[1645213749752,0.10225061,2793.4,2792.4,0.89555]
[1645213750356,0.10225061,2793.4,2792.5,1.40803667]
[1645213750555,0.7595911,2793.1,2792.7,0.89542]
[1645213750754,0.7595911,2793.1,2792.8,0.8953994]
[1645213751060,0.7595911,2793.1,2792.2,0.1789]
[1645213751061,1.89134156,2793.0,2792.2,0.1789]
[1645213751257,0.09982156,2792.9,2792.0,1.34600038]
[1645213751455,1.25892156,2792.9,2792.1,1.40921386]
[1645213751656,1.25892156,2792.9,2792.0,1.34600038]
[1645213751657,0.27872156,2792.8,2792.0,1.34600038]
[1645213751855,0.09982156,2792.7,2792.0,1.34600038]
[1645213752058,0.85708235,2792.1,2792.0,1.34600038]
[1645213752254,0.89577,2792.7,2792.0,1.34600038]
[1645213752454,0.10003948,2792.6,2792.0,1.34600038]
[1645213753308,0.6650131,2792.2,2792.0,1.34600038]
[1645213753511,0.06440675,2792.1,2792.0,1.34600038]
[1645213753912,0.06440675,2792.1,2792.0,0.74490038]
[1645213754314,6.2449,2792.0,2791.4,0.3304]
[1645213754517,6.2449,2792.0,2791.8,0.143261]
[1645213754716,1.1789,2791.9,2791.2,0.04102649]
[1645213754911,0.85724029,2791.5,2791.2,0.04102649]
[1645213756112,0.85724029,2791.5,2791.3,0.3304]
[1645213756311,0.85724029,2791.5,2791.2,2.649e-05]
[1645213756963,0.85724029,2791.5,2791.2,0.00233313]
[1645213757369,0.85724029,2791.5,2791.2,3.313e-05]
[1645213757563,3.54603029,2791.5,2791.2,3.313e-05]
[1645213757964,3.54603029,2791.5,2791.1,5.574e-05]
[1645213758167,3.72513029,2791.5,2791.1,5.574e-05]
[1645213758363,1.0,2791.4,2791.1,5.574e-05]
[1645213758565,1.89637,2791.4,2791.1,5.574e-05]
[1645213758763,1.89637,2791.4,2790.5,0.01433214]
[1645213758764,0.89626,2791.3,2790.5,0.01433214]
[1645213758965,0.783892,2790.6,2790.5,0.01433214]
[1645213759165,1.8273,2791.2,2790.5,0.01433214]
[1645213759563,1.8273,2791.2,2790.3,4.17994393]
[1645213759763,1.8273,2791.2,2790.3,4.07994393]
[1645213759968,1.8273,2791.2,2790.6,0.89614]
[1645213760164,1.1635,2791.4,2790.6,0.89614]
[1645213760365,0.82930541,2791.0,2790.4,0.8961679]
[1645213760604,0.83447664,2791.3,2791.1,0.664179]
[1645213761905,0.83447664,2791.3,2791.1,0.66647767]
[1645213762104,0.83447664,2791.3,2791.1,7.767e-05]
[1645213762105,4.33447664,2791.3,2791.1,7.767e-05]
[1645213762306,3.5,2791.2,2791.1,7.767e-05]
[1645213762706,6.5,2791.1,2790.1,0.0426527]
[1645213762907,4.5,2791.0,2790.1,0.0426527]
[1645213763306,0.81045575,2790.8,2790.1,0.0426527]
[1645213763609,0.01858581,2790.7,2790.1,0.0426527]
[1645213764254,0.8965,2790.6,2790.1,0.0426527]
[1645213764453,0.01858581,2790.7,2790.1,0.0426527]
[1645213765251,0.83581767,2790.3,2790.1,0.0426527]
[1645213766656,0.83581767,2790.3,2790.1,0.04492369]
[1645213767058,0.83581767,2790.3,2790.1,2.369e-05]
[1645213767261,2.7932,2790.6,2790.1,2.369e-05]
[1645213767456,2.7932,2790.6,2789.3,1.76337527]
[1645213767663,2.07308581,2790.7,2789.3,1.76337527]
[1645213767857,1.89398581,2790.7,2789.3,1.76337527]
[1645213768109,0.89654,2790.6,2789.3,1.66337527]
[1645213768309,2.11237596,2790.6,2789.3,0.89656]
[1645213768810,0.84593344,2790.0,2789.5,0.89646]
[1645213769111,1.21583596,2790.6,2789.5,0.89646]
[1645213769413,0.03663596,2790.6,2789.5,0.6]
[1645213769910,0.86321374,2790.3,2789.8,0.89635]
[1645213770315,0.03663596,2790.6,2789.8,0.89635]
[1645213771314,0.03663596,2790.6,2790.0,0.00226546]
[1645213771515,0.03663596,2790.6,2790.0,0.89859546]
[1645213772153,0.03663596,2790.6,2790.0,0.00226546]
[1645213772357,0.03663596,2790.6,2789.9,1.79253]
[1645213772554,0.73999307,2790.6,2790.0,0.00226546]
[1645213772958,0.02303596,2790.6,2790.1,0.3]
[1645213773157,1.88797373,2790.7,2790.1,1.7112682]
[1645213773355,0.01257373,2790.7,2790.1,1.7112682]
[1645213773556,0.01257373,2790.7,2790.2,2.22507146]
[1645213773755,1.1354,2790.9,2790.2,2.22507146]
[1645213773756,0.0360344,2790.5,2790.3,1.32891146]
[1645213774357,0.0360344,2790.5,2790.1,2.90734]
[1645213774656,0.0360344,2790.5,2790.2,1.32897183]
[1645213774855,0.0360344,2790.5,2790.2,2.22525183]
[1645213775057,0.0360344,2790.5,2790.3,1.32897183]
[1645213775254,0.0360344,2790.5,2790.4,1.32871433]
[1645213775510,0.0360344,2790.5,2790.1,1.115]
[1645213775712,0.0360344,2790.5,2790.2,1.328724]
[1645213776408,0.0360344,2790.5,2790.1,1.115]
[1645213776609,0.87540226,2790.4,2790.1,1.115]
[1645213776809,0.87540226,2790.4,2790.0,0.30190363]
[1645213777008,0.87540226,2790.4,2790.0,0.00190363]
[1645213777209,0.87540226,2790.4,2789.7,3.0868]
[1645213777408,0.87540226,2790.4,2789.7,1.115]
[1645213777610,0.87540226,2790.4,2790.0,0.00190363]
[1645213777912,0.0360344,2790.5,2790.0,0.00190363]
[1645213778310,0.0216344,2790.5,2790.1,0.515]
[1645213778509,0.0216344,2790.5,2790.1,2.60756]
[1645213778709,0.0216344,2790.5,2790.2,2.09237]
[1645213778907,0.03108517,2790.4,2790.2,2.09237]
[1645213779361,0.03108517,2790.4,2790.2,0.3]
[1645213780264,0.03108517,2790.4,2790.0,0.00199866]
[1645213780467,0.0341494,2790.5,2790.4,0.02375468]
[1645213781265,0.0341494,2790.5,2790.4,5.468e-05]
[1645213782270,0.91254523,2790.5,2790.4,5.468e-05]
[1645213782467,0.91254523,2790.5,2789.5,0.0136]
[1645213782468,6.5,2790.4,2789.5,0.0136]
[1645213782666,0.1792,2790.3,2789.2,0.007]
[1645213783018,1.1792,2790.3,2789.2,0.007]
[1645213783411,1.1792,2790.3,2789.2,1.8001206]
[1645213783611,0.67354481,2789.9,2789.6,0.00194289]
[1645213784414,0.67354481,2789.9,2789.3,0.89652]
[1645213784611,0.67354481,2789.9,2789.4,0.0038926]
[1645213784812,0.1792,2790.3,2789.6,0.00194289]
[1645213785013,7.75872135,2790.4,2789.6,0.00194289]
[1645213785413,8.65529135,2790.4,2789.6,0.00194289]
[1645213785616,8.65529135,2790.4,2789.4,3.5038926]
[1645213785617,7.75872135,2790.4,2789.4,3.5038926]
[1645213785820,7.75872135,2790.4,2789.4,0.0038926]
[1645213785821,0.88768855,2790.0,2789.4,0.0038926]
[1645213786016,8.65538135,2790.4,2789.9,4.272e-05]
[1645213786215,1.1792,2790.3,2789.9,4.272e-05]
[1645213786414,0.8967,2790.1,2789.9,4.272e-05]
[1645213786861,0.1792,2790.0,2789.2,0.0108926]
[1645213787257,7.93792135,2790.4,2789.2,0.007]
[1645213787457,8.65529135,2790.4,2789.2,0.9074626]
[1645213787658,7.75872135,2790.4,2789.4,0.89649]
[1645213787859,7.75872135,2790.4,2789.5,0.0038926]
[1645213788260,8.54255644,2790.4,2789.3,2.0967626]
[1645213788759,0.01601955,2789.9,2789.8,0.01521188]
[1645213788961,0.01601955,2789.9,2789.8,1.188e-05]
[1645213790160,0.6562573,2789.9,2789.8,1.188e-05]
[1645213790611,0.01601955,2789.9,2789.8,1.188e-05]
[1645213791710,0.7615718,2789.9,2789.8,1.188e-05]
[1645213794011,0.7615718,2789.9,2789.7,0.01605765]
[1645213794462,0.7615718,2789.9,2789.7,0.01831638]
[1645213795262,0.7615718,2789.9,2789.7,0.01605765]
[1645213795663,0.7615718,2789.9,2789.7,0.01831642]
[1645213796562,0.7615718,2789.9,2789.6,0.01549058]
[1645213796563,0.17833663,2789.8,2789.6,0.01549058]
[1645213797363,1.07519663,2789.8,2789.6,0.01549058]
[1645213797562,0.17833663,2789.7,2789.6,0.01549058]
[1645213798607,0.17833663,2789.7,2789.2,0.007]
[1645213798805,1.07519663,2789.7,2789.2,0.007]
[1645213799009,0.17833663,2789.6,2789.2,0.007]
[1645213799409,0.80520135,2789.3,2789.2,0.007]
[1645213801410,0.00627906,2789.0,2788.9,3.7519228]
[1645213801864,0.00627906,2789.0,2788.7,0.0090158]
[1645213801865,3.7519,2788.9,2788.7,0.0090158]
[1645213802058,0.89725,2788.7,2788.4,0.056195]
[1645213802456,0.7842437,2788.6,2788.4,0.056195]
[1645213802662,0.7842437,2788.6,2788.4,0.006195]
[1645213803061,0.89725,2788.7,2788.4,0.006195]
[1645213803460,6.2519,2788.9,2788.4,0.006195]
[1645213803663,6.2519,2788.9,2788.5,1.32968648]
[1645213804061,0.69145602,2788.8,2788.5,1.32968648]
[1645213804962,0.69145602,2788.8,2788.4,0.149619]
[1645213805163,0.69145602,2788.8,2788.5,1.32919703]
[1645213805362,0.69145602,2788.8,2788.4,0.006195]
[1645213805815,0.69145602,2788.8,2788.5,1.32953386]
[1645213806413,0.69145602,2788.8,2788.5,0.00222923]
[1645213806613,0.69145602,2788.8,2788.5,2.923e-05]
[1645213807015,4.64882,2788.9,2788.5,2.923e-05]
[1645213807214,3.7519,2788.9,2788.5,1.32886289]
[1645213807417,3.7519,2788.9,2788.6,0.89677]
[1645213807613,3.7519,2788.9,2788.4,0.006195]
[1645213808016,0.03647085,2788.7,2788.5,1.32902923]
[1645213808214,0.87587504,2788.6,2788.5,1.32902923]
[1645213808417,0.87587504,2788.6,2788.4,0.006195]
[1645213809017,0.03647085,2788.7,2788.4,0.006195]
[1645213809261,0.93345085,2788.7,2788.4,0.006195]
[1645213809664,0.03647085,2788.7,2788.4,0.006195]
[1645213810059,0.03647085,2788.7,2788.5,1.32859654]
[1645213810457,0.03647085,2788.7,2788.4,0.006195]
[1645213811158,0.03647085,2788.7,2788.4,0.00841881]
[1645213811561,0.85287935,2788.5,2788.4,0.00841881]
[1645213812162,0.85287935,2788.5,2788.4,0.006195]
[1645213812761,0.93344085,2788.7,2788.2,0.143431]
[1645213812762,0.03647085,2788.7,2788.2,0.143431]
[1645213813029,0.01597024,2788.7,2788.6,0.01842682]
[1645213813419,0.01597024,2788.7,2788.6,2.682e-05]
[1645213813619,0.19517024,2788.7,2788.6,2.682e-05]
[1645213814219,0.37384294,2788.7,2788.6,2.682e-05]
[1645213814419,0.19517024,2788.7,2788.6,2.682e-05]
[1645213815019,0.01597024,2788.7,2788.6,2.682e-05]
[1645213819664,0.0026201,2788.8,2788.6,0.51502682]
[1645213820521,3.7519,2788.9,2788.6,0.51502682]
[1645213820911,0.0026201,2788.8,2788.6,0.51502682]
[1645213821314,0.0026201,2788.8,2788.6,2.682e-05]
[1645213821712,4.64884,2788.9,2788.6,2.682e-05]
[1645213821911,4.64884,2788.9,2788.1,1.32794506]
[1645213821912,0.00077318,2788.5,2788.1,1.32794506]
[1645213822112,0.00077318,2788.5,2788.2,0.00221841]
[1645213822717,0.73355834,2788.4,2788.2,1.841e-05]
[1645213822913,0.00077318,2788.5,2788.0,1.8907685]
[1645213823113,0.00077318,2788.5,2788.0,1.8407685]
[1645213824558,0.00077318,2788.5,2788.1,1.32950084]
[1645213824559,0.83790342,2788.4,2788.1,1.32950084]
[1645213825659,0.83790342,2788.4,2788.1,1.33171382]
[1645213826363,0.89712,2788.3,2788.1,0.00221298]
[1645213826560,0.89712,2788.3,2788.1,1.33467998]
[1645213826761,0.89712,2788.3,2788.1,1.33689296]
[1645213827364,0.00077318,2788.5,2788.1,1.33689296]
[1645213827664,0.00077318,2788.5,2788.1,1.33467998]
[1645213828116,0.00077318,2788.5,2788.1,1.33689296]
[1645213828612,0.01397873,2788.4,2788.1,3.13066466]
[1645213828814,0.00261991,2788.7,2788.2,1.84967998]
[1645213829016,3.7519,2788.9,2788.3,1.33467998]
[1645213829215,0.00245782,2788.7,2788.4,0.815]
[1645213829414,0.00245782,2788.7,2788.5,1.33467998]
[1645213829615,0.00245782,2788.7,2788.5,1.84967998]
[1645213829812,0.00245782,2788.7,2788.6,1.33467998]
[1645213830012,3.7519,2788.9,2788.6,1.33467998]
[1645213830214,3.7519,2788.9,2788.6,2.23143998]
[1645213830416,3.7519,2788.9,2788.7,1.33467998]
[1645213830616,3.9311,2788.9,2788.8,1.33467998]
[1645213830815,4.10680327,2788.9,2788.5,0.515]
[1645213831017,3.7519,2788.9,2788.6,1.33554751]
[1645213831518,0.5,2788.9,2788.6,1.33940257]
[1645213831767,0.00245792,2788.8,2788.6,1.33940257]
[1645213832365,0.00245792,2788.8,2788.6,1.63940257]
[1645213832567,0.5,2788.9,2788.7,1.33554751]
[1645213832768,1.8646,2789.9,2788.7,3.12878751]
[1645213832769,0.00245792,2788.8,2788.7,3.12878751]
[1645213832974,0.00245792,2788.8,2788.7,7.14378751]
[1645213833175,4.2729,2789.7,2788.8,4.0]
[1645213833371,4.2729,2789.7,2788.9,5.52974751]
[1645213833567,1.85510908,2790.2,2788.9,6.12974751]
[1645213833768,0.68119704,2790.1,2788.9,3.43307367]
[1645213833975,0.68119704,2790.1,2788.9,3.04695751]
[1645213834168,0.68119704,2790.1,2788.9,2.74695751]
[1645213834169,1.54020612,2790.1,2788.9,2.74695751]
[1645213834366,0.86039704,2790.1,2788.9,2.74695751]
[1645213834567,1.54020612,2790.1,2788.9,2.74695751]
[1645213834768,0.68119704,2790.1,2788.9,3.04695751]
[1645213835066,1.36100612,2790.1,2788.9,3.04695751]
[1645213836115,0.68119704,2790.1,2788.9,3.19034351]
[1645213836315,0.8966,2790.0,2788.9,3.19034351]
[1645213836516,0.8966,2790.0,2788.9,3.04695751]
[1645213837318,1.79331,2790.0,2788.9,2.74695751]
[1645213837521,0.00262004,2789.1,2788.9,1.85054751]
[1645213838419,0.04216247,2789.0,2788.9,1.85054751]
[1645213838919,0.04216247,2789.0,2788.9,3.64370751]
[1645213839765,0.04216247,2789.0,2788.9,3.59370751]
[1645213840769,0.04216247,2789.0,2788.9,1.28554751]
[1645213840967,0.04216247,2789.0,2788.7,0.00385506]
[1645213842367,0.04463038,2789.0,2788.7,0.00385506]
[1645213843009,0.00874697,2789.0,2788.9,0.02263827]
[1645213843407,0.00627906,2789.0,2788.9,0.02263827]
[1645213843610,1.56124294,2789.3,2788.9,0.02263827]
[1645213843611,1.37898984,2789.3,2788.9,0.02263827]
[1645213844011,0.66444294,2789.3,2788.9,0.02263827]
[1645213844611,1.07593,2789.7,2788.9,0.02263827]
[1645213844612,0.1792,2789.7,2788.9,0.02263827]
[1645213844814,1.2179,2789.8,2789.2,0.89652]
[1645213845513,1.2179,2789.8,2789.3,0.8965]
[1645213845718,1.2179,2789.8,2789.4,0.515]
[1645213845913,1.2179,2789.8,2789.4,2.3076971]
[1645213846113,0.00261991,2789.6,2789.4,2.3076971]
[1645213846314,1.1835,2790.3,2789.6,0.00202568]
[1645213846515,1.1835,2790.3,2789.6,1.79476568]
[1645213846516,2.3498,2790.3,2789.6,1.79476568]
[1645213846769,2.3498,2790.3,2789.6,2.30976568]
[1645213847362,2.3498,2790.3,2789.6,1.41339568]
[1645213848270,1.1663,2790.3,2789.8,0.89638]
[1645213848465,1.1663,2790.3,2789.9,0.515]
[1645213848666,3.57220908,2790.8,2789.9,4.015]
[1645213848667,1.1855,2790.8,2789.9,4.015]
[1645213849364,1.1855,2790.8,2789.9,4.1941]
[1645213849565,1.1855,2790.8,2789.9,5.02482158]
[1645213849865,1.1855,2790.8,2790.2,0.89609]
[1645213850065,1.1855,2790.8,2790.3,0.515]
[1645213850911,0.00261965,2790.7,2790.3,0.515]
[1645213851118,0.00261965,2790.7,2790.3,1.41109]
[1645213851611,0.00261965,2790.7,2790.4,3.5]
[1645213851810,1.1908,2791.3,2790.5,0.515]
[1645213852009,1.1908,2791.3,2790.6,0.515]
[1645213852209,1.1908,2791.3,2790.8,0.89606]
[1645213852407,1.1908,2791.3,2790.6,0.515]
[1645213853216,0.00261956,2791.1,2790.7,0.89609]
[1645213853416,0.00261956,2791.1,2790.7,1.41109]
[1645213854267,1.1908,2791.3,2790.7,1.41109]
[1645213854468,0.00261957,2791.0,2790.7,1.41109]
[1645213854966,0.00261957,2791.0,2790.7,0.515]
[1645213855368,1.1908,2791.3,2790.7,0.515]
[1645213855566,0.00261958,2791.0,2790.7,0.515]
[1645213856567,0.89625,2791.1,2790.7,0.515]
[1645213856767,0.00261958,2791.0,2790.7,0.515]
[1645213857372,0.00261958,2791.0,2790.7,0.815]
[1645213857771,1.1926,2791.4,2790.7,0.815]
[1645213857772,1.1926,2791.4,2790.7,1.115]
[1645213858213,0.01237664,2791.0,2790.7,1.115]
[1645213858416,0.01237664,2791.0,2790.8,2.6877705]
[1645213858622,0.01237664,2791.0,2790.9,0.6941]
[1645213858813,0.01237664,2791.0,2790.9,24.44221616]
[1645213859012,0.00975706,2791.0,2790.9,24.44221616]
[1645213859213,0.00975706,2791.0,2790.9,24.3561]
[1645213859415,0.00975706,2791.0,2790.9,25.19573532]
[1645213859811,0.00975706,2791.0,2790.9,26.55016423]
[1645213860215,0.00975706,2791.0,2790.9,26.90898423]
[1645213860615,0.00975706,2791.0,2790.9,15.98898423]
[1645213860815,0.00975706,2791.0,2790.9,10.98898423]
[1645213861015,0.00975706,2791.0,2790.9,15.98898423]
[1645213861224,0.00975706,2791.0,2790.9,14.63455532]
[1645213861415,0.00975706,2791.0,2790.9,20.98771255]
[1645213861615,0.00975706,2791.0,2790.9,31.90771255]
[1645213861880,0.00975706,2791.0,2790.9,10.23419339]
[1645213862068,0.00975706,2791.0,2790.9,8.88103616]
[1645213862367,0.00975706,2791.0,2790.9,7.58103616]
[1645213862568,0.00975706,2791.0,2790.9,6.957]
[1645213862774,0.00975706,2791.0,2790.9,0.515]
[1645213863269,0.01634003,2791.1,2790.9,0.515]
[1645213863874,0.01382588,2791.1,2790.9,0.515]
[1645213864272,0.01634002,2791.1,2790.9,0.515]
[1645213864771,0.01634002,2791.1,2790.4,3.22401402]
[1645213864772,0.01634002,2791.1,2790.6,0.3]
[1645213864968,0.01634002,2791.1,2790.4,1.35105402]
[1645213864969,0.01634002,2791.1,2790.8,0.89594]
[1645213865168,0.01382588,2791.1,2790.8,1.41094]
[1645213865372,0.01634002,2791.1,2790.8,1.41094]
[1645213865615,0.01634002,2791.1,2790.8,1.71094]
[1645213865814,0.01634002,2791.1,2790.8,2.6068165]
[1645213866012,0.01634002,2791.1,2790.9,3.5]
[1645213866216,0.01634002,2791.1,2791.0,0.515]
[1645213866417,0.13819997,2792.1,2791.3,0.02770949]
[1645213866614,0.13819997,2792.1,2791.4,0.515]
[1645213867017,0.14849379,2792.0,2791.4,0.515]
[1645213867818,0.00253011,2791.8,2791.4,0.515]
[1645213868819,0.13819997,2792.1,2791.4,0.515]
[1645213868820,0.1485153,2792.0,2791.4,0.515]
[1645213869020,0.00253013,2791.7,2791.4,0.515]
[1645213869862,0.1485153,2792.0,2791.4,0.515]
[1645213870261,0.00252777,2791.7,2791.4,0.515]
[1645213870867,0.89840777,2791.7,2791.3,0.02770949]
[1645213871067,0.1485153,2791.6,2791.3,0.02770949]
[1645213871264,2.3042153,2791.6,2791.3,0.02770949]
[1645213871467,0.1485153,2791.5,2791.3,0.02770949]
[1645213871770,0.1485153,2791.4,2791.3,0.02770949]
[1645213871968,2.99786554,2791.6,2791.3,0.02770949]
[1645213872164,0.14326174,2791.5,2791.3,0.02770949]
[1645213872366,3.89404554,2791.6,2791.3,0.02770949]
[1645213872566,0.14580364,2791.5,2791.3,0.02770949]
[1645213873211,1.04199364,2791.5,2791.3,0.02770949]
[1645213873410,0.89871781,2791.5,2791.3,0.02770949]
[1645213873721,1.33947062,2791.4,2790.1,0.515]
[1645213873914,0.89627,2791.1,2789.8,3.6791]
[1645213874113,4.03447,2791.1,2789.9,1.35954628]
[1645213875115,0.00252834,2790.6,2789.9,3.75188628]
[1645213875312,0.00252834,2790.6,2790.0,1.35954628]
[1645213875512,0.00252834,2790.6,2790.0,1.87454628]
[1645213875714,0.00252834,2790.6,2790.1,1.65954628]
[1645213875913,0.00252834,2790.6,2790.1,0.815]
[1645213876112,2.1283,2791.0,2790.1,0.515]
[1645213876314,0.00252838,2790.4,2790.1,0.515]
[1645213876513,1.79531838,2790.4,2790.1,0.515]
[1645213876766,1.79531838,2790.4,2789.7,0.515]
[1645213876967,1.79531838,2790.4,2789.8,1.36042938]
[1645213877165,1.79279,2790.4,2789.8,1.36042938]
[1645213877370,0.00244383,2790.2,2789.8,1.36042938]
[1645213878266,0.89639,2790.5,2789.8,1.36042938]
[1645213878667,0.00244384,2790.1,2789.9,0.91340299]
[1645213878867,0.00244384,2790.1,2790.0,1.36042938]
[1645213879471,0.89639,2790.5,2790.0,1.36042938]
[1645213879868,0.00244383,2790.2,2790.0,1.36042938]
[1645213880070,0.89879383,2790.2,2790.0,1.36042938]
[1645213880271,0.89879383,2790.2,2789.9,0.01713299]
[1645213880712,0.89635,2790.2,2789.9,0.01713299]
[1645213881111,0.89887839,2790.2,2789.9,0.01713299]
[1645213882514,1.89887839,2790.2,2789.9,0.01713299]
[1645213882713,0.1792,2790.1,2789.9,0.01713299]
[1645213883112,0.1792,2790.1,2790.0,0.01744465]
[1645213883316,3.98457839,2790.2,2790.0,0.01744465]
[1645213883317,3.0857,2790.2,2790.0,0.01744465]
[1645213883514,0.0025284,2790.1,2790.0,0.01744465]
[1645213884366,1.2175,2790.3,2790.0,0.01744465]
[1645213884367,1.79292,2790.2,2790.0,0.01744465]
[1645213884772,1.79553977,2790.2,2790.0,4.465e-05]
[1645213884966,1.79553977,2790.2,2789.9,0.03415563]
[1645213884967,7.26163643,2790.0,2789.9,0.03415563]
[1645213885168,6.63719347,2790.0,2789.9,0.03415563]
[1645213885964,6.63719347,2790.0,2789.9,0.02415563]
[1645213886365,6.63719347,2790.0,2789.9,0.01998345]
[1645213886366,7.474003,2790.0,2789.9,0.01998345]
[1645213886568,6.63719347,2790.0,2789.0,1.41156]
[1645213886767,0.89658,2789.8,2789.1,1.37947954]
[1645213888413,0.00261978,2789.7,2789.1,1.37947954]
[1645213888813,0.89922978,2789.7,2789.1,1.37947954]
[1645213889222,0.13022677,2789.6,2789.1,1.37947954]
[1645213889415,1.92359677,2789.6,2789.2,1.37947954]
[1645213889615,1.79337,2789.6,2788.8,1.3833346]
[1645213889816,0.89669,2789.4,2788.9,1.32995007]
[1645213890018,0.89669,2789.4,2788.8,0.00385506]
[1645213891217,0.89669,2789.4,2788.9,0.8966]
[1645213891872,1.2181,2789.5,2788.9,0.8966]
[1645213892068,1.2181,2789.5,2788.9,1.7116]
[1645213892270,1.2181,2789.5,2789.0,4.39644]
[1645213892468,1.2181,2789.5,2789.1,0.515]
[1645213892867,1.2181,2789.5,2789.1,1.71146]
[1645213893070,1.2181,2789.5,2789.1,0.815]
[1645213893268,0.01835082,2789.6,2789.1,0.815]
[1645213893477,0.66374108,2790.7,2789.1,0.815]
[1645213893478,0.90824754,2791.3,2789.5,11.45451866]
[1645213893674,0.6784437,2791.4,2790.5,6.442]
[1645213893874,1.725,2791.7,2790.8,6.442]
[1645213894073,0.6784437,2792.0,2791.1,1.7916]
[1645213894275,0.84883149,2791.7,2791.1,1.7916]
[1645213894474,1.1371,2792.2,2791.2,0.515]
[1645213894475,4.317,2792.1,2791.2,0.515]
[1645213895074,4.1379,2792.1,2791.2,0.515]
[1645213895525,0.8146845,2791.7,2791.2,0.515]
[1645213895714,0.8146845,2791.7,2791.2,1.4108]
[1645213896516,0.8146845,2791.7,2791.3,0.8958883]
[1645213896721,0.8146845,2791.7,2790.5,0.0136]
[1645213896918,5.46577898,2791.6,2790.5,0.515]
[1645213897219,6.67402652,2791.6,2790.5,0.515]
[1645213897419,1.1791,2791.5,2790.2,0.0136]
[1645213897620,1.1791,2791.5,2789.8,0.515]
[1645213897621,8.87257544,2791.5,2789.8,0.515]
[1645213897925,0.63693472,2790.5,2789.8,0.5286]
[1645213898319,0.63693472,2790.5,2789.8,0.515]
[1645213898725,0.89649,2790.4,2789.8,0.515]
[1645213899364,0.89649,2790.4,2789.4,0.515]
[1645213899365,0.00241043,2790.3,2789.4,0.515]
[1645213899764,0.89656,2790.1,2789.4,0.515]
[1645213900066,0.83527879,2790.0,2789.4,0.515]
[1645213900763,0.00241052,2789.9,2789.4,0.515]
[1645213901565,1.73190879,2790.0,2789.4,0.515]
[1645213901766,0.00241049,2789.8,2789.4,0.515]
[1645213902571,3.02824,2790.4,2789.4,0.515]
[1645213903027,0.00237972,2789.8,2789.4,0.515]
[1645213903618,0.00237972,2789.8,2789.5,0.89648]
[1645213903817,0.89651,2790.2,2789.5,0.89648]
[1645213904017,0.89651,2790.2,2789.5,0.69648]
[1645213904219,0.0023793,2789.8,2789.4,0.515]
[1645213904819,0.0023793,2789.8,2789.5,0.89648]
[1645213905021,1.7401528,2790.2,2789.5,0.89648]
[1645213905221,1.7401528,2790.2,2789.4,0.515]
[1645213905424,0.0023793,2789.8,2789.4,0.515]
[1645213906223,0.89655,2790.0,2789.4,0.515]
[1645213906424,0.00238101,2789.8,2789.5,1.7929319]
[1645213906625,1.2352,2790.4,2790.1,0.00247157]
[1645213907471,0.82586513,2790.3,2790.1,0.00247157]
[1645213907675,0.82586513,2790.3,2790.1,7.157e-05]
[1645213907874,1.4143,2790.4,2790.1,7.157e-05]
[1645213908471,3.20725,2790.4,2790.1,7.157e-05]
[1645213909077,3.02815,2790.4,2790.1,7.157e-05]
[1645213910087,3.03009876,2790.4,2790.1,7.157e-05]
[1645213911125,3.02815,2790.4,2790.1,7.157e-05]
[1645213911329,3.03076973,2790.4,2790.1,7.157e-05]
[1645213912326,3.92478,2790.4,2790.1,7.157e-05]
[1645213912527,3.03076973,2790.4,2790.1,7.157e-05]
[1645213912726,3.03076973,2790.4,2790.3,4.176e-05]
[1645213912930,6.5,2790.3,2790.1,7.157e-05]
[1645213913126,0.1791,2790.2,2790.1,7.157e-05]
[1645213913325,6.6792,2790.3,2790.1,7.157e-05]
[1645213913528,6.6792,2790.3,2789.2,2.42048654]
[1645213913529,6.5,2790.2,2789.2,2.42048654]
[1645213913724,0.89659,2790.1,2789.7,0.143389]
[1645213914125,0.89659,2790.1,2789.1,0.00224353]
[1645213914369,0.63520052,2789.5,2789.1,0.00224353]
[1645213914573,0.63520052,2789.5,2788.6,0.007]
[1645213914574,4.9925576,2789.3,2788.6,0.007]
[1645213914774,4.9925576,2789.1,2788.0,10.1007685]
[1645213914975,4.9925576,2789.1,2788.0,1.8407685]
[1645213914976,6.5,2788.9,2788.0,1.8407685]
[1645213915573,6.45,2788.9,2788.0,1.8407685]
[1645213916075,0.89718,2788.7,2788.0,1.8407685]